bitfinex/quotes_BTCUSD_20230109
["timestamp","ask_amount","ask_price","bid_price","bid_amount"]
[1673262125827,0.43593617,17284.0,17283.0,1.08619283]
[1673262128635,0.43593617,17284.0,17283.0,1.66479583]
[1673262129691,0.00171349,17284.0,17283.0,1.66479583]
[1673262130239,0.43585817,17284.0,17283.0,1.66479583]
[1673262130518,0.43585817,17284.0,17283.0,2.02737083]
[1673262131041,0.43585817,17284.0,17283.0,1.66479583]
[1673262131780,0.41585817,17284.0,17283.0,1.66479583]
[1673262131990,0.41585817,17284.0,17283.0,1.65979583]
[1673262133037,1.09249745,17285.0,17283.0,1.08119283]
[1673262134045,1.09249745,17285.0,17283.0,0.94119283]
[1673262134292,1.09349745,17285.0,17283.0,1.08219283]
[1673262135790,0.3473324,17284.0,17283.0,1.70195943]
[1673262136044,0.3473324,17284.0,17283.0,1.66079583]
[1673262136781,0.3473324,17284.0,17283.0,1.51979583]
[1673262137030,0.3483324,17284.0,17283.0,1.65979583]
[1673262137290,0.001,17284.0,17283.0,1.65979583]
[1673262137793,0.001,17284.0,17283.0,1.08119283]
[1673262138766,0.43518316,17284.0,17283.0,1.08119283]
[1673262140532,0.43518316,17284.0,17283.0,1.65979583]
[1673262142051,0.78254922,17284.0,17283.0,1.65979583]
[1673262144205,0.60888118,17284.0,17283.0,1.65979583]
[1673262144426,0.78254922,17284.0,17283.0,1.65979583]
[1673262144927,1.04306487,17284.0,17283.0,1.65979583]
[1673262145191,0.60885787,17284.0,17283.0,1.65979583]
[1673262146905,0.78254922,17284.0,17283.0,1.65979583]
[1673262147169,1.04302771,17284.0,17283.0,2.27956243]
[1673262147434,0.60884455,17284.0,17283.0,2.27956243]
[1673262147684,0.43512325,17284.0,17283.0,2.64213743]
[1673262148193,0.43512325,17284.0,17283.0,2.85816543]
[1673262148444,0.43512325,17284.0,17283.0,2.60097383]
[1673262148960,0.43512325,17284.0,17283.0,2.23839883]
[1673262150186,0.60884455,17284.0,17283.0,2.23839883]
[1673262152186,0.4350882,17284.0,17283.0,2.23839883]
[1673262152678,0.4350882,17284.0,17283.0,2.60097383]
[1673262152919,0.78245426,17284.0,17283.0,2.23839883]
[1673262153191,0.4350882,17284.0,17283.0,2.23839883]
[1673262154658,0.78245426,17284.0,17283.0,2.23839883]
[1673262154896,0.60884455,17284.0,17283.0,2.23839883]
[1673262155165,0.78244092,17284.0,17283.0,2.23839883]
[1673262155692,0.78243722,17284.0,17283.0,2.23839883]
[1673262156664,0.60884455,17284.0,17283.0,2.23839883]
[1673262157184,0.60884455,17284.0,17283.0,1.69211389]
[1673262157447,0.60884455,17284.0,17283.0,1.11341915]
[1673262157448,0.78254922,17284.0,17283.0,1.11341915]
[1673262159840,0.78254922,17284.0,17283.0,1.47599415]
[1673262161374,0.60876364,17284.0,17283.0,2.05459715]
[1673262162417,0.60876364,17284.0,17283.0,1.69202215]
[1673262162659,0.60876364,17284.0,17283.0,2.05459715]
[1673262163678,0.60876364,17284.0,17283.0,1.11341915]
[1673262163909,0.60876364,17284.0,17283.0,1.47599415]
[1673262164158,0.60876364,17284.0,17283.0,1.11341915]
[1673262167843,0.78254922,17284.0,17283.0,1.11341915]
[1673262168084,1.04294652,17284.0,17283.0,1.11341915]
[1673262168355,0.60876336,17284.0,17283.0,1.11341915]
[1673262168603,1.04294652,17284.0,17283.0,1.11341915]
[1673262168843,0.60876336,17284.0,17283.0,1.11341915]
[1673262169075,1.04294652,17284.0,17283.0,1.11341915]
[1673262169343,0.78254922,17284.0,17283.0,1.11341915]
[1673262169622,1.04296016,17284.0,17283.0,1.47599415]
[1673262169861,1.04296109,17284.0,17283.0,1.47599415]
[1673262170100,0.78254922,17284.0,17283.0,1.11341915]
[1673262171107,0.78254922,17284.0,17283.0,1.47599415]
[1673262171352,0.78254922,17284.0,17283.0,1.47608778]
[1673262171598,1.04297099,17284.0,17283.0,1.47608778]
[1673262171848,0.60878783,17284.0,17283.0,1.47608778]
[1673262172825,0.60878783,17284.0,17283.0,2.05469078]
[1673262173085,0.60878783,17284.0,17283.0,1.69211578]
[1673262174621,1.04297099,17284.0,17283.0,1.11351278]
[1673262175129,0.78254922,17284.0,17283.0,1.11351278]
[1673262175623,0.78254922,17284.0,17283.0,1.11341915]
[1673262175874,0.60882689,17284.0,17283.0,1.11341915]
[1673262176130,1.04301005,17284.0,17283.0,1.11341915]
[1673262176381,0.78254922,17284.0,17283.0,1.11341915]
[1673262176897,0.60882805,17284.0,17283.0,1.11341915]
[1673262177371,0.60882805,17284.0,17283.0,1.47599415]
[1673262177865,0.60882805,17284.0,17283.0,1.11341915]
[1673262178375,0.60882805,17284.0,17283.0,1.47599415]
[1673262179135,0.60882805,17284.0,17283.0,1.47608778]
[1673262180265,0.60874714,17284.0,17283.0,1.11351278]
[1673262180799,0.60874714,17284.0,17283.0,1.47608778]
[1673262181313,0.60874714,17284.0,17283.0,1.11351278]
[1673262181812,1.0429303,17284.0,17283.0,1.11341915]
[1673262182076,0.78246831,17284.0,17283.0,1.11351278]
[1673262182354,0.78246831,17284.0,17283.0,0.53481615]
[1673262183598,0.78246831,17284.0,17283.0,0.89739115]
[1673262184885,0.6087604,17284.0,17283.0,1.47599415]
[1673262188986,0.6087604,17284.0,17283.0,1.47608778]
[1673262189480,0.78246831,17284.0,17283.0,1.47599415]
[1673262189975,0.60877559,17284.0,17283.0,1.47599415]
[1673262190203,0.78246831,17284.0,17283.0,1.47599415]
[1673262190906,0.78246831,17284.0,17283.0,1.11341915]
[1673262195291,0.78246831,17284.0,17283.0,0.53481615]
[1673262198242,0.43510225,17284.0,17283.0,0.53481615]
[1673262198726,0.78244713,17284.0,17283.0,0.53481615]
[1673262198978,0.43510225,17284.0,17283.0,0.53481615]
[1673262200881,0.43510225,17284.0,17283.0,0.53472622]
[1673262202516,0.78242293,17284.0,17283.0,0.53472622]
[1673262204511,1.04291256,17284.0,17283.0,0.53472622]
[1673262204772,0.78242293,17284.0,17283.0,0.53472622]
[1673262205534,1.04291655,17284.0,17283.0,1.11332922]
[1673262205787,0.60873339,17284.0,17283.0,1.11332922]
[1673262206306,0.60873339,17284.0,17283.0,0.53472622]
[1673262206307,0.78242293,17284.0,17283.0,0.53472622]
[1673262207546,0.78242293,17284.0,17283.0,0.89730122]
[1673262208044,0.60873207,17284.0,17283.0,2.13330586]
[1673262208286,0.60873207,17284.0,17283.0,3.2273809]
[1673262208287,0.00091909,17284.0,17283.0,3.2273809]
[1673262208556,0.17456959,17284.0,17283.0,2.87950886]
[1673262208839,0.00091909,17284.0,17283.0,3.45811186]
[1673262209823,0.00091909,17284.0,17283.0,2.87950886]
[1673262211041,0.17456959,17284.0,17283.0,3.45811186]
[1673262211288,0.00091909,17284.0,17283.0,3.45811186]
[1673262211525,0.00091909,17284.0,17283.0,3.45848885]
[1673262212637,0.00091909,17284.0,17283.0,4.03709185]
[1673262215626,0.00091909,17284.0,17283.0,4.2100037]
[1673262215875,0.00091909,17284.0,17283.0,4.03709185]
[1673262221202,0.00703979,17285.0,17284.0,1.45408092]
[1673262221451,0.00703979,17285.0,17284.0,4.33852952]
[1673262221696,0.00703979,17285.0,17284.0,3.71876292]
[1673262222715,0.00803979,17285.0,17284.0,3.85976292]
[1673262226205,0.00803979,17285.0,17284.0,3.69336292]
[1673262228855,0.18169029,17285.0,17284.0,3.69336292]
[1673262232073,0.00803979,17285.0,17284.0,3.69336292]
[1673262233089,0.00803979,17285.0,17284.0,4.31312952]
[1673262233595,0.00803979,17285.0,17284.0,3.69336292]
[1673262234356,0.00803979,17285.0,17284.0,4.31312952]
[1673262234611,0.00803979,17285.0,17284.0,3.69336292]
[1673262240321,0.18169029,17285.0,17284.0,3.69336292]
[1673262244655,0.44218259,17285.0,17284.0,3.69336292]
[1673262244907,0.44218259,17285.0,17284.0,3.33078792]
[1673262246511,0.61585277,17285.0,17284.0,3.33078792]
[1673262247740,0.44218005,17285.0,17284.0,3.69336292]
[1673262247986,0.78950073,17285.0,17284.0,3.69336292]
[1673262248447,0.61585277,17285.0,17284.0,3.69336292]
[1673262249474,0.78949963,17285.0,17284.0,3.69336292]
[1673262249945,0.44217895,17285.0,17284.0,3.69336292]
[1673262251729,0.44217895,17285.0,17284.0,3.72207931]
[1673262254928,0.1667,17288.0,17285.0,1.10013448]
[1673262255170,0.745155,17288.0,17286.0,0.362575]
[1673262255434,0.745155,17288.0,17285.0,2.25715748]
[1673262255683,0.745155,17288.0,17285.0,2.43222367]
[1673262255928,0.1662,17289.0,17285.0,3.23847224]
[1673262256172,0.016,17288.0,17285.0,3.06756039]
[1673262256417,0.016,17288.0,17285.0,2.8924842]
[1673262256915,0.40387789,17289.0,17285.0,1.67864148]
[1673262257160,0.40387789,17289.0,17285.0,2.48690839]
[1673262257648,0.40387789,17289.0,17285.0,2.48890839]
[1673262257649,0.016,17288.0,17285.0,2.48890839]
[1673262257898,0.016,17288.0,17285.0,2.3139482]
[1673262258414,0.0158002,17288.0,17285.0,2.3139482]
[1673262258912,0.4662,17289.0,17287.0,0.4]
[1673262259637,0.179686,17288.0,17287.0,0.4]
[1673262259882,0.163686,17288.0,17287.0,0.4]
[1673262260133,0.4822,17289.0,17287.0,0.409]
[1673262260678,0.163686,17288.0,17287.0,0.409]
[1673262261166,1.00303678,17289.0,17287.0,0.409]
[1673262261415,0.98703678,17289.0,17287.0,0.4]
[1673262261702,0.179686,17288.0,17287.0,0.402]
[1673262262152,0.179686,17288.0,17287.0,0.4]
[1673262262404,0.98703678,17289.0,17287.0,0.4]
[1673262262651,0.163686,17288.0,17287.0,0.4]
[1673262263160,0.179686,17288.0,17287.0,0.402]
[1673262263412,0.98703678,17289.0,17287.0,0.4]
[1673262263891,0.163686,17288.0,17287.0,0.4]
[1673262264137,0.43401162,17288.0,17287.0,0.4]
[1673262264398,0.98703678,17289.0,17287.0,0.4]
[1673262264656,0.98703678,17289.0,17287.0,0.409]
[1673262264657,1.00303678,17289.0,17287.0,0.409]
[1673262264915,1.00303678,17289.0,17287.0,0.4]
[1673262265163,0.016,17288.0,17287.0,0.402]
[1673262265428,0.43399278,17288.0,17287.0,0.4]
[1673262265656,0.43399278,17288.0,17287.0,0.409]
[1673262266402,0.43399278,17288.0,17287.0,0.4]
[1673262266652,0.44999278,17288.0,17287.0,0.402]
[1673262266902,0.44499278,17288.0,17287.0,0.402]
[1673262273178,0.44499278,17288.0,17287.0,0.980469]
[1673262273960,0.7921306,17288.0,17287.0,0.980469]
[1673262275269,1.05244838,17288.0,17287.0,0.980469]
[1673262275515,1.31276591,17288.0,17287.0,1.558938]
[1673262275766,0.88377313,17288.0,17287.0,1.558938]
[1673262276013,0.86777313,17288.0,17287.0,1.556938]
[1673262276266,0.86777313,17288.0,17287.0,1.557938]
[1673262278330,1.041284,17288.0,17287.0,1.557938]
[1673262278578,0.69412424,17288.0,17287.0,1.557938]
[1673262280340,1.04126206,17288.0,17287.0,1.557938]
[1673262280586,1.04124883,17288.0,17287.0,1.557938]
[1673262280832,0.69411101,17288.0,17287.0,1.557938]
[1673262282364,0.69411101,17288.0,17287.0,2.136407]
[1673262284172,1.04124883,17288.0,17287.0,2.136407]
[1673262284489,0.69411101,17288.0,17287.0,2.136407]
[1673262286460,1.04123193,17288.0,17287.0,2.136407]
[1673262286709,0.6941058,17288.0,17287.0,2.136407]
[1673262286956,0.6941058,17288.0,17287.0,2.76971372]
[1673262287203,0.43378827,17288.0,17287.0,2.136407]
[1673262288693,0.6941058,17288.0,17287.0,2.76971372]
[1673262288945,0.43378827,17288.0,17287.0,2.136407]
[1673262290995,0.43378827,17288.0,17287.0,2.1363011]
[1673262292519,0.43378827,17288.0,17287.0,2.76960782]
[1673262292774,0.43378827,17288.0,17287.0,2.1363011]
[1673262293243,0.6941058,17288.0,17287.0,2.1363011]
[1673262294043,0.43378827,17288.0,17287.0,2.1363011]
[1673262294560,0.6941058,17288.0,17287.0,2.1363011]
[1673262295067,0.43371723,17288.0,17287.0,2.76960782]
[1673262297396,0.43371723,17288.0,17287.0,2.1363011]
[1673262298610,0.43371723,17288.0,17287.0,2.76960782]
[1673262299367,0.26024674,17288.0,17287.0,3.13218282]
[1673262299848,0.21072052,17288.0,17287.0,3.13218282]
[1673262300368,0.38419101,17288.0,17287.0,3.13218282]
[1673262300620,0.38419101,17288.0,17287.0,2.4988761]
[1673262300870,0.17347049,17288.0,17287.0,2.1363011]
[1673262301594,0.17347049,17288.0,17287.0,2.4988761]
[1673262301851,0.16924749,17288.0,17287.0,3.95958157]
[1673262302107,0.26031753,17289.0,17287.0,4.11902138]
[1673262302359,0.27139242,17290.0,17288.0,1.32831712]
[1673262302602,0.27139242,17290.0,17289.0,3.29602312]
[1673262302603,0.01107489,17290.0,17289.0,3.29602312]
[1673262302855,0.01107489,17290.0,17289.0,2.665381]
[1673262303088,0.01107489,17290.0,17289.0,3.29602312]
[1673262303589,0.02607489,17290.0,17289.0,4.01229264]
[1673262303841,0.01107489,17290.0,17289.0,4.01229264]
[1673262304083,0.02607489,17290.0,17289.0,4.02129264]
[1673262304811,0.01107489,17290.0,17289.0,4.01229264]
[1673262306070,0.01107489,17290.0,17289.0,3.38165052]
[1673262306314,0.01107489,17290.0,17289.0,4.01229264]
[1673262316886,0.01204948,17291.0,17290.0,0.99195755]
[1673262317141,0.01204948,17291.0,17290.0,3.25723655]
[1673262317390,0.01204948,17291.0,17290.0,3.88787867]
[1673262318395,0.01198288,17291.0,17290.0,3.88787867]
[1673262319673,0.02598288,17291.0,17290.0,3.88987867]
[1673262322410,0.01198288,17291.0,17290.0,3.88787867]
[1673262322650,0.01198288,17291.0,17290.0,3.95687867]
[1673262326170,0.01198288,17291.0,17290.0,4.12347867]
[1673262330679,1.02554277,17292.0,17291.0,1.03708665]
[1673262330910,1.02554277,17292.0,17291.0,3.93348029]
[1673262333677,1.03749023,17292.0,17291.0,3.93348029]
[1673262335657,1.03749023,17292.0,17291.0,3.30066665]
[1673262335901,1.03749023,17292.0,17291.0,3.9305842]
[1673262346272,1.03749023,17292.0,17291.0,3.7645842]
[1673262347023,1.03749023,17292.0,17291.0,4.0045842]
[1673262352331,1.03749023,17292.0,17291.0,3.37177056]
[1673262353079,1.03749023,17292.0,17291.0,4.0045842]
[1673262353346,1.03749023,17292.0,17291.0,3.37177056]
[1673262354112,1.21079688,17292.0,17291.0,2.43086056]
[1673262355602,1.47111441,17292.0,17291.0,2.43086056]
[1673262356098,1.7087923,17292.0,17291.0,2.43086056]
[1673262356359,1.64494558,17292.0,17291.0,0.818335]
[1673262356599,1.81362083,17292.0,17291.0,0.818335]
[1673262357103,1.81362083,17292.0,17291.0,0.24]
[1673262357359,2.54319513,17292.0,17291.0,0.24]
[1673262357614,2.84319513,17292.0,17291.0,0.24]
[1673262357862,2.9996186,17292.0,17291.0,0.24]
[1673262358110,2.9996186,17292.0,17291.0,0.0001]
[1673262358361,0.4,17291.0,17290.0,0.000116]
[1673262358605,1.30131682,17291.0,17290.0,0.000116]
[1673262358846,1.46500282,17291.0,17290.0,0.000116]
[1673262359091,1.16500282,17291.0,17290.0,0.000116]
[1673262359578,1.81173861,17291.0,17290.0,0.000116]
[1673262359843,1.41173861,17291.0,17290.0,0.069116]
[1673262361079,1.99007361,17291.0,17290.0,0.069116]
[1673262362315,1.69007361,17291.0,17290.0,0.069116]
[1673262363339,1.69007361,17291.0,17290.0,0.0690494]
[1673262363587,1.99007361,17291.0,17290.0,0.0690494]
[1673262364620,3.21862291,17291.0,17290.0,0.0690494]
[1673262364881,5.12171579,17291.0,17290.0,0.0690494]
[1673262365140,3.83440995,17291.0,17290.0,0.0690494]
[1673262365649,3.19724664,17291.0,17290.0,0.0690494]
[1673262366162,3.13926144,17291.0,17290.0,0.0690494]
[1673262366418,3.57229979,17291.0,17290.0,4.94e-05]
[1673262366676,3.13926144,17291.0,17290.0,4.94e-05]
[1673262366921,3.57209344,17291.0,17290.0,0.0090494]
[1673262367186,3.93635266,17291.0,17290.0,0.0090494]
[1673262367438,3.63635266,17291.0,17290.0,0.0090494]
[1673262367941,3.46319419,17291.0,17290.0,0.0090494]
[1673262369246,0.19957156,17291.0,17290.0,0.0090494]
[1673262369493,0.018,17291.0,17290.0,0.0090494]
[1673262373044,0.018,17291.0,17290.0,0.4090494]
[1673262376982,0.19107156,17291.0,17290.0,0.4090494]
[1673262377209,0.35475756,17291.0,17290.0,0.4090494]
[1673262377634,0.36845182,17291.0,17290.0,0.4090494]
[1673262378280,0.20476582,17291.0,17290.0,0.4090494]
[1673262378715,0.36845182,17291.0,17290.0,0.4090494]
[1673262378928,0.62812535,17291.0,17290.0,0.4090494]
[1673262379151,0.20476582,17291.0,17290.0,0.4090494]
[1673262380022,0.62812535,17291.0,17290.0,0.4090494]
[1673262380270,0.62812535,17291.0,17290.0,0.0090494]
[1673262380534,0.92812535,17291.0,17290.0,0.0090494]
[1673262380752,1.67964801,17291.0,17290.0,0.0090494]
[1673262381237,1.95798301,17291.0,17290.0,0.0090494]
[1673262381482,2.25798301,17291.0,17290.0,0.0090494]
[1673262381763,1.95798301,17291.0,17290.0,0.0090494]
[1673262382224,2.25798301,17291.0,17290.0,0.0090494]
[1673262382751,1.95798301,17291.0,17290.0,0.0090494]
[1673262383060,2.25798301,17291.0,17290.0,0.0090494]
[1673262383172,1.95798301,17291.0,17290.0,0.0090494]
[1673262383440,1.37964801,17291.0,17290.0,0.0090494]
[1673262383954,1.20649449,17291.0,17290.0,0.0090494]
[1673262385540,1.37964801,17291.0,17290.0,0.0090494]
[1673262385784,1.37964801,17291.0,17290.0,0.00897067]
[1673262387109,1.19457325,17291.0,17290.0,0.00897067]
[1673262387889,0.61623825,17291.0,17290.0,0.00897067]
[1673262389437,0.78934775,17291.0,17290.0,0.00897067]
[1673262389653,0.62566175,17291.0,17290.0,0.00897067]
[1673262389936,0.45253093,17291.0,17290.0,0.00897067]
[1673262391012,0.78923869,17291.0,17290.0,0.00897067]
[1673262392825,1.22207069,17291.0,17290.0,0.00897067]
[1673262393075,0.96239716,17291.0,17290.0,0.00897067]
[1673262393606,0.61613794,17291.0,17290.0,0.00897067]
[1673262394121,1.19447294,17291.0,17290.0,0.00897067]
[1673262394372,1.49447294,17291.0,17290.0,0.00897067]
[1673262394874,1.23704094,17291.0,17290.0,0.00897067]
[1673262395138,1.81537594,17291.0,17290.0,0.00897067]
[1673262395381,2.33621272,17291.0,17290.0,0.00897067]
[1673262396116,2.39419792,17291.0,17290.0,0.00897067]
[1673262396886,2.97253292,17291.0,17290.0,0.00897067]
[1673262398459,3.64159805,17291.0,17290.0,0.00897067]
[1673262398674,5.04100242,17291.0,17290.0,0.00897067]
[1673262398933,5.04057539,17291.0,17290.0,0.00897067]
[1673262399168,5.04057595,17291.0,17290.0,0.00897067]
[1673262399943,3.81727158,17291.0,17290.0,0.00897067]
[1673262401740,4.38871362,17291.0,17290.0,0.00897067]
[1673262401991,3.23887607,17291.0,17290.0,0.00897067]
[1673262402235,3.86830331,17291.0,17290.0,0.00897067]
[1673262402496,3.23887607,17291.0,17290.0,0.00897067]
[1673262402757,3.86830331,17291.0,17290.0,0.00897067]
[1673262402989,3.23887607,17291.0,17290.0,0.00897067]
[1673262403245,3.8327532,17291.0,17290.0,0.00897067]
[1673262403744,3.23887607,17291.0,17290.0,0.00897067]
[1673262404765,3.75913655,17291.0,17290.0,0.00897067]
[1673262408288,3.23887607,17291.0,17290.0,0.00897067]
[1673262408575,3.86830331,17291.0,17290.0,0.00897067]
[1673262409807,3.23887607,17291.0,17290.0,0.00897067]
[1673262410293,3.7589871,17291.0,17290.0,0.00897067]
[1673262410553,3.7589871,17291.0,17290.0,0.00885284]
[1673262412851,3.5920871,17291.0,17290.0,0.00885284]
[1673262415134,1.29025197,17291.0,17290.0,0.00885284]
[1673262415398,0.01961994,17291.0,17290.0,0.00885284]
[1673262415656,0.45304433,17291.0,17290.0,0.00885284]
[1673262416668,0.79477361,17291.0,17290.0,0.00885284]
[1673262420939,1.0548291,17291.0,17290.0,0.00885284]
[1673262421229,0.62140471,17291.0,17290.0,0.00885284]
[1673262423188,0.62140471,17291.0,17290.0,0.00589284]
[1673262424208,0.79477361,17291.0,17290.0,0.00589284]
[1673262431158,0.71241895,17291.0,17290.0,0.00589284]
[1673262431410,0.53900767,17291.0,17290.0,0.40589284]
[1673262435106,0.43334245,17291.0,17290.0,0.40589284]
[1673262446769,0.60661118,17291.0,17290.0,0.40589284]
[1673262448669,0.77029718,17291.0,17290.0,0.40589284]
[1673262448913,0.78002246,17291.0,17290.0,0.40589284]
[1673262449413,0.60667686,17291.0,17290.0,0.40589284]
[1673262450425,1.04010125,17291.0,17290.0,0.40589284]
[1673262450679,0.60667686,17291.0,17290.0,0.40589284]
[1673262450938,0.78002246,17291.0,17290.0,0.40589284]
[1673262454895,0.78002246,17291.0,17290.0,0.40577852]
[1673262454896,0.43342439,17291.0,17290.0,0.40577852]
[1673262455622,0.78058884,17291.0,17290.0,0.40577852]
[1673262456127,1.04095876,17291.0,17290.0,0.40577852]
[1673262456392,0.60753437,17291.0,17290.0,0.40577852]
[1673262457376,0.60753437,17291.0,17290.0,0.98414652]
[1673262459605,0.60253437,17291.0,17290.0,0.98414652]
[1673262461607,0.77606348,17291.0,17290.0,0.98414652]
[1673262461864,0.26036992,17291.0,17290.0,0.98414652]
[1673262462140,0.43389943,17291.0,17290.0,0.98414652]
[1673262462592,0.26036992,17291.0,17290.0,0.98414652]
[1673262463611,0.69379431,17291.0,17290.0,0.98414652]
[1673262463853,0.43342439,17291.0,17290.0,0.98414652]
[1673262464594,0.43342439,17291.0,17290.0,0.40577852]
[1673262467608,0.78051047,17291.0,17290.0,0.40577852]
[1673262468400,1.0408241,17291.0,17290.0,0.98414652]
[1673262468647,1.0408228,17291.0,17290.0,0.98414652]
[1673262469150,0.60739841,17291.0,17290.0,0.98414652]
[1673262469396,0.78051047,17291.0,17290.0,0.98414652]
[1673262472206,1.04084852,17291.0,17290.0,0.98414652]
[1673262472421,0.78051047,17291.0,17290.0,0.98414652]
[1673262472682,0.60742296,17291.0,17290.0,0.98414652]
[1673262472940,0.60742288,17291.0,17290.0,0.98414652]
[1673262474326,0.78051047,17291.0,17290.0,0.98414652]
[1673262474574,1.04085492,17291.0,17290.0,0.98414652]
[1673262474870,1.04085492,17291.0,17290.0,0.9839045]
[1673262475123,1.04085502,17291.0,17290.0,0.9839045]
[1673262475366,0.60743063,17291.0,17290.0,0.9839045]
[1673262476412,1.04085502,17291.0,17290.0,0.9839045]
[1673262477168,0.60743063,17291.0,17290.0,0.9839045]
[1673262477686,0.78051047,17291.0,17290.0,0.9839045]
[1673262479629,0.60742449,17291.0,17290.0,0.9839045]
[1673262479840,0.60742449,17291.0,17290.0,1.5622725]
[1673262480375,0.78051047,17291.0,17290.0,1.5622725]
[1673262480623,0.60742532,17291.0,17290.0,1.5622725]
[1673262482683,0.78051047,17291.0,17290.0,1.5622725]
[1673262487191,0.43342439,17291.0,17290.0,0.9839045]
[1673262489222,0.78056233,17291.0,17290.0,0.9839045]
[1673262489472,0.78057744,17291.0,17290.0,0.9839045]
[1673262489725,0.43342439,17291.0,17290.0,0.9839045]
[1673262489973,0.78057794,17291.0,17290.0,0.9839045]
[1673262491032,0.43342439,17291.0,17290.0,0.0055365]
[1673262491325,0.43393874,17291.0,17290.0,0.0055365]
[1673262492231,0.43393874,17291.0,17290.0,0.5839045]
[1673262494944,0.43393874,17291.0,17290.0,0.58382855]
[1673262497202,0.41491336,17291.0,17290.0,0.58382855]
[1673262497448,0.41491336,17291.0,17290.0,0.00546055]
[1673262497772,2.44680329,17292.0,17290.0,0.00546055]
[1673262498002,3.02510629,17292.0,17290.0,0.00546055]
[1673262498248,0.163686,17291.0,17290.0,0.00546055]
[1673262498819,0.163686,17291.0,17289.0,2.15189423]
[1673262499033,3.02710629,17292.0,17290.0,0.01]
[1673262499287,3.02510629,17292.0,17289.0,2.15189423]
[1673262499540,0.002,17291.0,17290.0,0.008]
[1673262499793,3.02510629,17292.0,17289.0,2.15189423]
[1673262500033,0.34712688,17290.0,17289.0,2.15989423]
[1673262500294,0.34712688,17290.0,17289.0,2.15189423]
[1673262500538,0.34712688,17290.0,17289.0,2.16189423]
[1673262501791,0.34712688,17290.0,17289.0,2.15189423]
[1673262502002,0.34712688,17290.0,17289.0,2.15289423]
[1673262502003,0.34912688,17290.0,17289.0,2.15289423]
[1673262504220,0.7829849,17290.0,17289.0,2.15289423]
[1673262505503,0.60943061,17290.0,17289.0,2.15289423]
[1673262513298,0.60943061,17290.0,17289.0,2.15282763]
[1673262515087,1.04328863,17290.0,17289.0,2.15282763]
[1673262515604,0.7829849,17290.0,17289.0,2.15282763]
[1673262515857,0.60945006,17290.0,17289.0,2.15282763]
[1673262516108,1.04330825,17290.0,17289.0,2.15282763]
[1673262516330,0.60945023,17290.0,17289.0,2.15282763]
[1673262516588,1.04330825,17290.0,17289.0,2.15282763]
[1673262517085,0.7829849,17290.0,17289.0,2.15282763]
[1673262518572,1.04332345,17290.0,17289.0,2.15282763]
[1673262519279,0.7829849,17290.0,17289.0,2.15282763]
[1673262527365,1.04339918,17290.0,17289.0,2.15282763]
[1673262527607,0.7829849,17290.0,17289.0,2.15282763]
[1673262527816,0.60953935,17290.0,17289.0,2.15282763]
[1673262528958,1.04339737,17290.0,17289.0,2.15282763]
[1673262529223,0.7829849,17290.0,17289.0,2.15282763]
[1673262529535,1.04340898,17290.0,17289.0,2.15282763]
[1673262530243,0.7829849,17290.0,17289.0,2.15282763]
[1673262532904,0.6095538,17290.0,17289.0,2.15282763]
[1673262533424,0.7829849,17290.0,17289.0,2.15271119]
[1673262533867,1.04341703,17290.0,17289.0,2.15271119]
[1673262534692,0.60955803,17290.0,17289.0,2.15271119]
[1673262535654,0.78316459,17290.0,17289.0,2.15271119]
[1673262535932,0.60955803,17290.0,17289.0,2.15271119]
[1673262536667,0.43603755,17290.0,17289.0,2.15271119]
[1673262536911,0.78316443,17290.0,17289.0,2.15271119]
[1673262537148,0.43603755,17290.0,17289.0,2.15271119]
[1673262539635,0.78316443,17290.0,17289.0,2.15271119]
[1673262540347,0.43601717,17290.0,17289.0,2.15271119]
[1673262540597,0.78314405,17290.0,17289.0,2.15271119]
[1673262540856,0.43601717,17290.0,17289.0,2.15271119]
[1673262542895,0.17558602,17290.0,17289.0,2.15271119]
[1673262543147,0.17558602,17290.0,17289.0,2.51528619]
[1673262543393,0.17558602,17290.0,17289.0,3.09368819]
[1673262544943,0.17558602,17290.0,17289.0,2.73111319]
[1673262545198,0.002,17290.0,17289.0,2.90402504]
[1673262545718,0.002,17290.0,17289.0,2.73111319]
[1673262551341,0.002,17290.0,17289.0,3.09368819]
[1673262551860,0.002,17290.0,17289.0,2.73111319]
[1673262556836,0.17558602,17290.0,17289.0,2.73111319]
[1673262558994,0.17358602,17290.0,17289.0,2.73011319]
[1673262559246,0.17358602,17290.0,17289.0,2.73911319]
[1673262562335,0.60755803,17291.0,17289.0,2.73911319]
[1673262562336,0.43401717,17291.0,17289.0,2.73911319]
[1673262562607,0.43401717,17291.0,17290.0,0.4]
[1673262562849,0.43401717,17291.0,17290.0,1.556736]
[1673262563371,0.43601717,17291.0,17290.0,1.556736]
[1673262564413,0.43401717,17291.0,17290.0,1.556736]
[1673262564660,0.43601717,17291.0,17290.0,1.557736]
[1673262571347,0.78314405,17291.0,17290.0,1.557736]
[1673262571603,0.60955803,17291.0,17290.0,1.557736]
[1673262572608,0.7829849,17291.0,17290.0,1.557736]
[1673262575375,0.60948953,17291.0,17290.0,1.557736]
[1673262575863,0.43593302,17291.0,17290.0,1.557736]
[1673262577101,0.17557037,17291.0,17290.0,1.557736]
[1673262577350,0.43593302,17291.0,17290.0,1.557736]
[1673262577869,0.17557037,17291.0,17290.0,1.557736]
[1673262578126,0.17557037,17291.0,17290.0,2.136104]
[1673262578377,0.43593302,17291.0,17290.0,2.498679]
[1673262578637,0.43593302,17291.0,17290.0,2.136104]
[1673262578638,0.17557037,17291.0,17290.0,2.136104]
[1673262578906,0.17557037,17291.0,17290.0,2.666279]
[1673262579401,0.17546629,17291.0,17290.0,2.666279]
[1673262579907,0.43582894,17291.0,17290.0,2.498679]
[1673262580215,0.43582894,17291.0,17290.0,2.136104]
[1673262580917,0.78294498,17291.0,17290.0,2.136104]
[1673262581165,0.60938545,17291.0,17290.0,2.136104]
[1673262582661,0.78288082,17291.0,17290.0,1.557736]
[1673262583144,0.60938329,17291.0,17290.0,1.557736]
[1673262583644,1.04324131,17291.0,17290.0,1.557736]
[1673262583892,0.78288082,17291.0,17290.0,1.557736]
[1673262588795,0.60937167,17291.0,17290.0,1.557736]
[1673262592769,0.78293237,17291.0,17290.0,1.557736]
[1673262593026,0.60937167,17291.0,17290.0,1.557736]
[1673262594660,0.782932,17291.0,17290.0,1.557736]
[1673262595144,0.43580512,17291.0,17290.0,1.557736]
[1673262596788,0.60937167,17291.0,17290.0,1.557736]
[1673262597047,0.78292885,17291.0,17290.0,1.557736]
[1673262597279,0.78292886,17291.0,17290.0,1.557736]
[1673262597519,0.43580198,17291.0,17290.0,1.557736]
[1673262598019,0.60937167,17291.0,17290.0,1.557736]
[1673262598635,0.7977609,17291.0,17290.0,1.557736]
[1673262599707,0.45063402,17291.0,17290.0,1.557736]
[1673262600429,0.7977609,17291.0,17290.0,1.557736]
[1673262600683,0.45063402,17291.0,17290.0,1.557736]
[1673262601377,0.62420284,17291.0,17290.0,1.553521]